[Event "4th EFE Metz Festival-WIM"]
[Site "Metz"]
[Date "2018.07.23"]
[Round "1"]
[White "Zozulia, Anna"]
[Black "Afraoui, Anaelle"]
[Result "1-0"]
[ECO "B30"]
[WhiteElo "2300"]
[BlackElo "2056"]
[Annotator "NA"]
[PlyCount "45"]
[EventDate "2018.07.22"]
[EventType "tourn"]
[EventCountry "FRA"]
[SourceTitle "playchess.com"]
[Source "ChessBase"]
[SourceQuality "1"]
[TimeControl "5400+30"]

1. e4 {[%emt 0:00:00]} c5 {[%emt 0:00:09]} 2. Nf3 {[%emt 0:00:00]} Nc6 {[%emt 0:00:07]} 3. Nc3 {[%emt 0:00:48]} Nf6 {[%emt 0:00:22]} 4. Bb5 {[%emt 0:00:31]} Qc7 {[%emt 0:00:50]} 5. O-O {[%emt 0:00:41]} Nd4 {[%emt 0:00:21]} 6. Bc4 {[%emt 0:06:26]} e6 $14 {[%emt 0:02:23]} 7. h3 {[%emt 0:10:01]} Be7 {[%emt 0:03:50]} 8. d3 {[%emt 0:01:10]} a6 {[%emt 0:07:21]} 9. a4 {[%emt 0:04:34]} O-O 10. Be3 {[%emt 0:10:33]} Nc6 {[%emt 0:11:45]} 11. Qd2 {[%emt 0:14:06]} Rd8 {[%emt 0:07:29]} 12. Bf4 {[%emt 0:06:34]} d6 {[%emt 0:04:46]} 13. Rae1 {[%emt 0:05:48]} e5 {[%emt 0:06:01]} 14. Bh2 {[%emt 0:04:23]} h6 {[%emt 0:06:07]} 15. Nh4 {[%emt 0:05:41]} Nd4 {[%emt 0:11:17]} 16. f4 {[%emt 0:09:46]} Rf8 {[%emt 0:17:50]} 17. fxe5 {[%emt 0:01:31]} dxe5 {[%emt 0:01:09]} 18. Ng6 {[%emt 0:00:17]} b5 {[%emt 0:02:49]} 19. Bxe5 {[%emt 0:05:43]} Qd8 {[%emt 0:06:30]} 20. Nxe7+ {[%emt 0:00:19]} Qxe7 {[%emt 0:00:23]} 21. Bxf6 {[%emt 0:00:45]} gxf6 {[%emt 0:01:21]} 22. Nd5 {[%emt 0:00:14]} Qe5 {[%emt 0:01:03]} 23. Qxh6 {[%emt 0:00:17]} 1-0

[Event "4th EFE Metz Festival-WIM"]
[Site "Metz"]
[Date "2018.07.23"]
[Round "1"]
[White "Moskalets, Svetlana"]
[Black "Soubirou, Oriane"]
[Result "1-0"]
[ECO "C00"]
[WhiteElo "2208"]
[BlackElo "2105"]
[Annotator "NA"]
[PlyCount "87"]
[EventDate "2018.07.22"]
[EventType "tourn"]
[EventCountry "FRA"]
[SourceTitle "playchess.com"]
[Source "ChessBase"]
[SourceQuality "1"]
[TimeControl "5400+30"]

1. e4 {[%emt 0:00:00]} a6 {[%emt 0:00:08]} 2. d4 {[%emt 0:00:07]} e6 {[%emt 0:00:08]} 3. Bd3 {[%emt 0:03:07]} b5 {[%emt 0:02:44]} 4. Nf3 {[%emt 0:01:31]} Bb7 {[%emt 0:00:19]} 5. a4 {[%emt 0:01:23]} b4 {[%emt 0:00:35]} 6. Nbd2 {[%emt 0:00:44]} c5 {[%emt 0:09:50]} 7. dxc5 {[%emt 0:00:58]} Bxc5 {[%emt 0:01:11]} 8. Nb3 {[%emt 0:00:12]} Be7 {[%emt 0:02:43]} 9. O-O {[%emt 0:04:26]} Qc7 {[%emt 0:05:50]} 10. Qe2 {[%emt 0:01:31]} Nc6 {[%emt 0:06:49]} 11. Be3 {[%emt 0:06:44]} Nf6 {[%emt 0:04:41]} 12. Nc5 {[%emt 0:06:46]} Ng4 {[%emt 0:06:22]} 13. Nxb7 {[%emt 0:02:00]} Nxe3 {[%emt 0:03:23]} 14. Qxe3 {[%emt 0:00:33]} Qxb7 {[%emt 0:00:17]} 15. e5 {[%emt 0:00:47]} Qc7 {[%emt 0:02:49]} 16. Rfe1 {[%emt 0:01:33]} Qa5 {[%emt 0:12:59]} 17. Rad1 {[%emt 0:04:12]} Rd8 {[%emt 0:05:05]} 18. Nd2 {[%emt 0:12:36]} O-O {[%emt 0:07:09]} 19. Nb3 {[%emt 0:01:02]} Qc7 {[%emt 0:01:05]} 20. Bxa6 {[%emt 0:02:42]} f6 {[%emt 0:00:38]} 21. exf6 {[%emt 0:15:02]} Rxf6 {[%emt 0:02:55]} 22. Bb5 {[%emt 0:02:59]} Na5 {[%emt 0:09:43]} 23. Rxd7 {[%emt 0:23:02]} Rxd7 {[%emt 0:11:20]} 24. Bxd7 {[%emt 0:00:02]} Qxd7 {[%emt 0:02:07]} 25. Nxa5 {[%emt 0:00:15]} Qxa4 {[%emt 0:00:49]} 26. Nb3 {[%emt 0:00:14]} Qc6 {[%emt 0:00:48]} 27. Re2 {[%emt 0:01:34]} Qd5 {[%emt 0:00:39]} 28. Qe4 {[%emt 0:01:31]} Qh5 {[%emt 0:00:29]} 29. Rd2 {[%emt 0:00:45]} Rh6 {[%emt 0:00:37]} 30. h3 {[%emt 0:00:20]} Rg6 {[%emt 0:00:16]} 31. Rd7 {[%emt 0:01:04]} Bf8 {[%emt 0:00:27]} 32. Rd8 {[%emt 0:01:17]} Qg5 {[%emt 0:00:22]} 33. Re8 {[%emt 0:00:35]} Kf7 {[%emt 0:01:03]} 34. Rc8 {[%emt 0:00:27]} h6 {[%emt 0:00:25]} 35. g3 {[%emt 0:00:22]} Qh5 {[%emt 0:00:22]} 36. Kg2 {[%emt 0:00:13]} Rf6 {[%emt 0:00:30]} 37. Nd4 {[%emt 0:01:20]} Qd1 {[%emt 0:00:39]} 38. Nf3 {[%emt 0:00:17]} Bd6 {[%emt 0:00:32]} 39. Rd8 {[%emt 0:01:06]} Ke7 {[%emt 0:00:26]} 40. Ra8 {[%emt 0:00:17]} Kf7 {[%emt 0:00:27]} 41. Qb7+ {[%emt 0:00:28]} Kg6 {[%emt 0:00:33]} 42. Ra7 {[%emt 0:00:10]} Bf8 {[%emt 0:00:13]} 43. Qe4+ {[%emt 0:00:12]} Rf5 {[%emt 0:00:30]} 44. Qxe6+ {[%emt 0:00:25] Qd4} 1-0

[Event "4th EFE Metz Festival-WIM"]
[Site "Metz"]
[Date "2018.07.23"]
[Round "1"]
[White "Thomas, Anysia"]
[Black "Terbe, Zsuzsanna"]
[Result "1/2-1/2"]
[ECO "E91"]
[WhiteElo "2156"]
[BlackElo "2178"]
[Annotator "NA"]
[PlyCount "63"]
[EventDate "2018.07.22"]
[EventType "tourn"]
[EventCountry "FRA"]
[SourceTitle "playchess.com"]
[Source "ChessBase"]
[SourceQuality "1"]
[TimeControl "5400+30"]

1. d4 {[%emt 0:00:00]} Nf6 {[%emt 0:00:12]} 2. c4 {[%emt 0:00:00]} g6 {[%emt 0:00:05]} 3. Nc3 {[%emt 0:00:00]} Bg7 {[%emt 0:00:04]} 4. e4 {[%emt 0:00:00]} d6 {[%emt 0:00:06]} 5. Nf3 {[%emt 0:00:25]} O-O {[%emt 0:00:08]} 6. Be2 {[%emt 0:00:05]} Bg4 {[%emt 0:00:28]} 7. Be3 {[%emt 0:03:26]} Nfd7 {[%emt 0:01:34]} 8. Nd2 {[%emt 0:02:40]} Bxe2 {[%emt 0:00:45]} 9. Nxe2 {[%emt 0:03:01]} c5 {[%emt 0:03:50]} 10. O-O {[%emt 0:01:53]} cxd4 {[%emt 0:10:38]} 11. Bxd4 {[%emt 0:01:42]} Nf6 {[%emt 0:11:51]} 12. Bc3 {[%emt 0:08:46]} Nc6 {[%emt 0:01:20]} 13. Nf4 {[%emt 0:03:52]} Rc8 {[%emt 0:06:11]} 14. Rc1 {[%emt 0:08:09]} a6 {[%emt 0:02:54]} 15. Qe2 {[%emt 0:09:37]} Re8 {[%emt 0:06:21]} 16. Nd5 {[%emt 0:26:57]} e6 {[%emt 0:13:02]} 17. Nxf6+ {[%emt 0:04:39]} Bxf6 {[%emt 0:00:09]} 18. Nf3 {[%emt 0:00:54]} Bxc3 {[%emt 0:05:53]} 19. Rxc3 {[%emt 0:00:11]} Qa5 {[%emt 0:01:05]} 20. Qd2 {[%emt 0:08:02]} Red8 {[%emt 0:03:36]} 21. Ng5 {[%emt 0:05:22]} Qe5 {[%emt 0:07:48]} 22. Rh3 {[%emt 0:04:27]} h5 {[%emt 0:00:57]} 23. Nf3 {[%emt 0:02:44]} Qg7 {[%emt 0:02:19]} 24. Rd1 {[%emt 0:01:27]} Ne5 {[%emt 0:02:31]} 25. Nxe5 {[%emt 0:01:14]} Qxe5 {[%emt 0:00:08]} 26. b3 {[%emt 0:00:58]} Qxe4 {[%emt 0:03:07]} 27. Re1 {[%emt 0:00:35]} Qf5 {[%emt 0:05:00]} 28. Rf3 {[%emt 0:00:09]} Qg4 {[%emt 0:00:06]} 29. Rg3 {[%emt 0:01:06]} Qf5 {[%emt 0:00:05]} 30. Rf3 {[%emt 0:00:03]} Qg4 {[%emt 0:00:04]} 31. Rg3 {[%emt 0:00:48]} Qf5 {[%emt 0:00:13]} 32. Rf3 {[%emt 0:00:55]} 1/2-1/2

[Event "4th EFE Metz Festival-WIM"]
[Site "Metz"]
[Date "2018.07.23"]
[Round "1"]
[White "Broly, Mathilde"]
[Black "Terbe, Julianna"]
[Result "1/2-1/2"]
[ECO "B31"]
[WhiteElo "2149"]
[BlackElo "2238"]
[Annotator "NA"]
[PlyCount "129"]
[EventDate "2018.07.22"]
[EventType "tourn"]
[EventCountry "FRA"]
[SourceTitle "playchess.com"]
[Source "ChessBase"]
[SourceQuality "1"]
[TimeControl "5400+30"]

1. e4 {[%emt 0:14:42]} c5 {[%emt 0:00:07]} 2. Nf3 {[%emt 0:00:13]} Nc6 {[%emt 0:00:06]} 3. Bb5 {[%emt 0:00:23]} g6 {[%emt 0:00:19]} 4. Bxc6 {[%emt 0:04:09]} bxc6 {[%emt 0:00:08]} 5. d3 {[%emt 0:03:09]} Bg7 {[%emt 0:00:26]} 6. O-O {[%emt 0:02:11]} d6 {[%emt 0:02:03]} 7. h3 {[%emt 0:00:50]} Rb8 {[%emt 0:04:52]} 8. c3 {[%emt 0:05:44]} e5 {[%emt 0:03:13]} 9. Nbd2 {[%emt 0:12:47]} Ne7 {[%emt 0:03:24]} 10. Nc4 {[%emt 0:03:40]} O-O {[%emt 0:01:02]} 11. a3 {[%emt 0:03:14]} f5 {[%emt 0:06:39]} 12. Re1 {[%emt 0:00:52]} h6 {[%emt 0:09:49]} 13. b4 {[%emt 0:17:53]} cxb4 {[%emt 0:00:07]} 14. axb4 {[%emt 0:02:17]} Rb7 {[%emt 0:00:09]} 15. Be3 {[%emt 0:04:05]} Be6 {[%emt 0:01:14]} 16. Na5 {[%emt 0:04:32]} Rc7 {[%emt 0:03:44]} 17. exf5 {[%emt 0:02:29]} gxf5 {[%emt 0:02:19]} 18. Bd2 {[%emt 0:06:07]} Ng6 {[%emt 0:02:49]} 19. Qa4 {[%emt 0:04:22]} Qd7 {[%emt 0:03:23]} 20. Qc2 {[%emt 0:01:45]} f4 {[%emt 0:01:14]} 21. Kh2 {[%emt 0:00:29]} Bf6 {[%emt 0:04:16]} 22. d4 {[%emt 0:01:36]} Bf5 {[%emt 0:01:24]} 23. Qa2+ {[%emt 0:00:06]} Kh8 {[%emt 0:00:56]} 24. dxe5 {[%emt 0:02:19]} dxe5 {[%emt 0:02:02]} 25. Nb3 {[%emt 0:00:17]} Qg7 {[%emt 0:01:18]} 26. g3 {[%emt 0:02:01]} Bc8 {[%emt 0:06:42]} 27. Nc5 {[%emt 0:00:41]} Rg8 {[%emt 0:03:14]} 28. Rg1 {[%emt 0:00:22]} Re7 {[%emt 0:12:54]} 29. Rae1 {[%emt 0:00:27]} e4 {[%emt 0:03:30]} 30. Nxe4 {[%emt 0:00:37]} Rxe4 {[%emt 0:03:36]} 31. Rxe4 {[%emt 0:00:17]} Qd7 {[%emt 0:00:03]} 32. g4 {[%emt 0:00:30]} Qd3 {[%emt 0:00:04]} 33. Qf7 {[%emt 0:00:21]} Qxe4 {[%emt 0:05:06]} 34. Qxf6+ {[%emt 0:00:08]} Kh7 {[%emt 0:01:33]} 35. Nh4 {[%emt 0:00:52]} Nxh4 36. Qxh4 {[%emt 0:00:26]} Rg5 {[%emt 0:14:03]} 37. Re1 {[%emt 0:00:54]} Qc4 {[%emt 0:00:33]} 38. f3 {[%emt 0:00:30]} Qa2 {[%emt 0:00:30]} 39. Qf2 {[%emt 0:00:34]} Rd5 {[%emt 0:00:30]} 40. Be3 {[%emt 0:00:14]} Qxf2+ {[%emt 0:00:29]} 41. Bxf2 {[%emt 0:00:05]} Rd2 {[%emt 0:00:11]} 42. Kg2 {[%emt 0:01:10]} Ba6 {[%emt 0:00:27]} 43. Re4 {[%emt 0:00:29]} Rc2 {[%emt 0:00:43]} 44. Rxf4 {[%emt 0:00:06]} Rxc3 {[%emt 0:00:45]} 45. Bxa7 {[%emt 0:00:09]} h5 {[%emt 0:00:27]} 46. g5 {[%emt 0:00:32]} Rc4 {[%emt 0:00:31]} 47. Rf6 {[%emt 0:00:41]} h4 {[%emt 0:00:32]} 48. Bc5 {[%emt 0:00:26]} Rc2+ {[%emt 0:00:06]} 49. Kg1 {[%emt 0:00:33]} Bb5 {[%emt 0:00:42]} 50. Rh6+ {[%emt 0:00:25]} Kg7 {[%emt 0:00:01]} 51. Rxh4 {[%emt 0:00:06]} Kg6 {[%emt 0:00:04]} 52. Rg4 {[%emt 0:00:27]} Rc1+ {[%emt 0:00:17]} 53. Kf2 {[%emt 0:00:40]} Rc2+ {[%emt 0:00:03]} 54. Kg3 {[%emt 0:01:01]} Bf1 {[%emt 0:00:17]} 55. h4 {[%emt 0:00:45]} Rg2+ {[%emt 0:01:15]} 56. Kf4 {[%emt 0:00:06]} Rc2 {[%emt 0:00:04]} 57. Rg1 {[%emt 0:00:52]} Be2 {[%emt 0:00:31]} 58. Rh1 {[%emt 0:00:22]} Kh5 {[%emt 0:00:29]} 59. Ke3 {[%emt 0:00:51]} Bc4 {[%emt 0:00:11]} 60. Kf4 {[%emt 0:00:32]} Bd5 {[%emt 0:00:13]} 61. Kg3 {[%emt 0:00:21]} Rc3 {[%emt 0:00:41]} 62. Rf1 {[%emt 0:00:11]} Rc4 {[%emt 0:00:04]} 63. Rh1 {[%emt 0:00:58]} Rc3 {[%emt 0:00:01]} 64. Rf1 {[%emt 0:00:32]} Rc4 {[%emt 0:00:00]} 65. Rh1 1/2-1/2

[Event "4th EFE Metz Festival-WIM"]
[Site "Metz"]
[Date "2018.07.23"]
[Round "1"]
[White "Muetsch, Annmarie"]
[Black "Schweitzer, Victoria"]
[Result "0-1"]
[ECO "B09"]
[WhiteElo "2146"]
[BlackElo "2097"]
[Annotator "NA"]
[PlyCount "144"]
[EventDate "2018.07.22"]
[EventType "tourn"]
[EventCountry "FRA"]
[SourceTitle "playchess.com"]
[Source "ChessBase"]
[SourceQuality "1"]
[TimeControl "5400+30"]

1. e4 {[%emt 0:00:00]} d6 {[%emt 0:00:05]} 2. d4 {[%emt 0:00:00]} Nf6 {[%emt 0:00:07]} 3. Nc3 {[%emt 0:00:00]} g6 {[%emt 0:00:04]} 4. f4 {[%emt 0:00:10]} Bg7 {[%emt 0:00:08]} 5. Nf3 {[%emt 0:00:07]} O-O {[%emt 0:00:06]} 6. Bd3 {[%emt 0:01:06]} Nc6 {[%emt 0:00:27]} 7. O-O {[%emt 0:03:02]} e5 {[%emt 0:00:43]} 8. fxe5 {[%emt 0:02:35]} dxe5 {[%emt 0:00:11]} 9. d5 {[%emt 0:00:30]} Nd4 {[%emt 0:00:20]} 10. Ne2 {[%emt 0:07:30]} Nxf3+ {[%emt 0:03:27]} 11. Rxf3 {[%emt 0:00:08]} c6 {[%emt 0:00:21]} 12. c4 {[%emt 0:04:16]} cxd5 {[%emt 0:06:10]} 13. cxd5 {[%emt 0:00:06]} Bg4 {[%emt 0:03:32]} 14. Rf2 {[%emt 0:05:56]} Qb6 {[%emt 0:00:32]} 15. h3 {[%emt 0:04:26]} Bd7 {[%emt 0:02:51]} 16. Qb3 {[%emt 0:05:49]} Qxb3 {[%emt 0:01:32]} 17. axb3 {[%emt 0:00:06]} Rfc8 {[%emt 0:00:18]} 18. Be3 {[%emt 0:04:48]} Ne8 {[%emt 0:20:56]} 19. Nc3 {[%emt 0:08:47]} a6 {[%emt 0:01:13]} 20. b4 {[%emt 0:04:03]} Bf8 {[%emt 0:02:37]} 21. Raf1 {[%emt 0:06:42]} Nd6 {[%emt 0:09:47]} 22. Bc5 {[%emt 0:02:23]} Be8 {[%emt 0:00:52]} 23. Rf6 {[%emt 0:04:36]} Rd8 {[%emt 0:02:33]} 24. Nd1 {[%emt 0:04:33]} Be7 {[%emt 0:15:56]} 25. R6f3 {[%emt 0:01:37]} h5 {[%emt 0:03:51]} 26. Ne3 {[%emt 0:01:46]} b5 {[%emt 0:02:19]} 27. g4 {[%emt 0:02:50]} h4 {[%emt 0:03:24]} 28. Kh1 {[%emt 0:06:34]} Bg5 {[%emt 0:00:54]} 29. Ng2 {[%emt 0:01:10]} Rac8 {[%emt 0:05:23]} 30. Ra1 Nb7 {[%emt 0:01:53]} 31. Bf2 {[%emt 0:03:31]} Rc1+ {[%emt 0:01:42]} 32. Rxc1 {[%emt 0:00:07]} Bxc1 {[%emt 0:00:02]} 33. Bxh4 {[%emt 0:02:49]} Rc8 {[%emt 0:03:54]} 34. Rf2 {[%emt 0:03:09]} g5 {[%emt 0:00:14]} 35. Bg3 {[%emt 0:00:07]} Bf4 {[%emt 0:00:06]} 36. Kh2 {[%emt 0:00:38]} Nd6 {[%emt 0:00:32]} 37. h4 {[%emt 0:03:37]} f6 {[%emt 0:00:37]} 38. Bxf4 {[%emt 0:02:54]} gxf4 {[%emt 0:00:16]} 39. h5 {[%emt 0:00:32]} Bd7 {[%emt 0:00:11]} 40. Nh4 {[%emt 0:01:40]} Nc4 {[%emt 0:02:09]} 41. Nf5 {[%emt 0:02:22]} Bxf5 {[%emt 0:00:35]} 42. gxf5 {[%emt 0:00:10]} Ne3 {[%emt 0:00:08]} 43. Rd2 {[%emt 0:01:03]} Kf7 {[%emt 0:01:05]} 44. d6 {[%emt 0:01:00]} Rd8 {[%emt 0:01:31]} 45. d7 {[%emt 0:02:16]} Rxd7 {[%emt 0:01:14]} 46. Bc4+ {[%emt 0:00:33]} Ke8 {[%emt 0:00:44]} 47. Rxd7 {[%emt 0:00:10]} Kxd7 {[%emt 0:00:01]} 48. Be6+ {[%emt 0:01:11]} Ke7 {[%emt 0:00:08]} 49. Bc8 {[%emt 0:00:28]} Nc4 {[%emt 0:01:54]} 50. Bxa6 {[%emt 0:00:31]} Nd6 {[%emt 0:00:04]} 51. Kg2 {[%emt 0:00:33]} Kf7 {[%emt 0:00:02]} 52. Kf3 {[%emt 0:00:26]} Kg7 {[%emt 0:00:01]} 53. Kg4 {[%emt 0:00:31]} Kh6 {[%emt 0:00:05]} 54. Kh4 {[%emt 0:00:30]} f3 {[%emt 0:00:32]} 55. Kg3 {[%emt 0:00:04]} Kxh5 {[%emt 0:00:43]} 56. Kxf3 {[%emt 0:00:05]} Kh4 {[%emt 0:00:02]} 57. Ke3 {[%emt 0:00:55]} Kg3 {[%emt 0:00:05]} 58. Kd3 {[%emt 0:00:04]} Kf4 {[%emt 0:00:03]} 59. Bxb5 {[%emt 0:00:46]} Nxb5 {[%emt 0:00:02]} 60. Kc4 {[%emt 0:00:05]} Nd6+ {[%emt 0:00:06]} 61. Kd5 {[%emt 0:00:26]} Nb5 {[%emt 0:04:33]} 62. Kc5 {[%emt 0:01:16]} Nd4 {[%emt 0:00:17]} 63. b5 {[%emt 0:00:14]} Nxb5 {[%emt 0:00:50]} 64. Kxb5 {[%emt 0:00:04]} Kxe4 {[%emt 0:00:01]} 65. Kc6 {[%emt 0:00:36]} Kd4 {[%emt 0:00:27]} 66. b4 {[%emt 0:00:08]} e4 {[%emt 0:00:01]} 67. b5 {[%emt 0:00:04]} e3 {[%emt 0:00:03]} 68. b6 {[%emt 0:00:13]} e2 {[%emt 0:00:04]} 69. b7 {[%emt 0:00:10]} e1=Q {[%emt 0:00:08]} 70. b8=Q {[%emt 0:00:15]} Qe4+ {[%emt 0:00:23]} 71. Kd7 {[%emt 0:00:39]} Qxf5+ {[%emt 0:00:01]} 72. Kd8 {[%emt 0:01:04]} Qd5+ {[%emt 0:00:15]} 0-1

[Event "4th EFE Metz Festival-WIM"]
[Site "Metz"]
[Date "2018.07.24"]
[Round "2"]
[White "Terbe, Julianna"]
[Black "Thomas, Anysia"]
[Result "1/2-1/2"]
[ECO "B36"]
[WhiteElo "2238"]
[BlackElo "2156"]
[Annotator "NA"]
[PlyCount "108"]
[EventDate "2018.07.22"]
[EventType "tourn"]
[EventCountry "FRA"]
[SourceTitle "playchess.com"]
[Source "ChessBase"]
[SourceQuality "1"]
[TimeControl "5400+30"]

1. Nf3 {[%emt 0:00:00]} c5 {[%emt 0:00:37]} 2. e4 {[%emt 0:01:40]} g6 {[%emt 0:01:22]} 3. d4 {[%emt 0:01:20]} cxd4 {[%emt 0:00:05]} 4. Nxd4 {[%emt 0:00:04]} Nc6 {[%emt 0:00:32]} 5. c4 {[%emt 0:00:21]} Nf6 {[%emt 0:01:32]} 6. Nc3 {[%emt 0:00:12]} d6 {[%emt 0:00:13]} 7. Be2 {[%emt 0:00:27]} Nxd4 {[%emt 0:00:07]} 8. Qxd4 {[%emt 0:00:06]} Bg7 {[%emt 0:00:03]} 9. Be3 {[%emt 0:00:12]} O-O {[%emt 0:00:05]} 10. Qd2 {[%emt 0:00:03]} Be6 {[%emt 0:00:17]} 11. O-O {[%emt 0:01:57]} Qa5 {[%emt 0:00:25]} 12. Rac1 {[%emt 0:05:10]} Rfc8 {[%emt 0:00:49]} 13. b3 {[%emt 0:00:21]} a6 {[%emt 0:02:05]} 14. f3 {[%emt 0:05:18]} b5 {[%emt 0:13:16]} 15. cxb5 {[%emt 0:07:23] B36: Sicilian: Maroczy Bind: Gurgenidze System} (15. Nd5 Qxd2 16. Bxd2 Nxd5 17. cxd5 Bd4+ 18. Kh1 Bd7 19. Rxc8+ Rxc8 20. Rc1 Rxc1+ 21. Bxc1 e6 22. dxe6 Bxe6 23. g4 d5 24. Bd3 dxe4 25. Bxe4 a5 26. Bc6 a4 27. Bxb5 axb3 28. axb3 Bxb3 29. Bc6 Kg7 30. Kg2 Be6 {½-½ (30) Kantor,G (2514)-Bakhmatsky,V (2404) Tarvisio 2017}) 15... axb5 {[%emt 0:01:39]} 16. Bd4 {[%emt 0:02:22]} Qb4 $146 {[%emt 0:23:01]} ({Predecessor:} 16... b4 17. Na4 Nd7 18. f4 Bxd4+ 19. Qxd4 Nf6 20. Bf3 Rxc1 21. Rxc1 Qa7 22. Qf2 Qxf2+ 23. Kxf2 {1-0 (58) Pacher,M (2363)-Motuz,K (2319) Frydek Mistek 2010}) 17. Rcd1 {[%emt 0:13:50]} Rab8 {[%emt 0:15:41]} 18. Qd3 {[%emt 0:19:26]} Nh5 {[%emt 0:08:53]} 19. Bxg7 {[%emt 0:01:37]} Kxg7 {[%emt 0:00:11]} 20. Nxb5 {[%emt 0:04:56]} Nf4 {[%emt 0:00:51]} 21. Qd4+ {[%emt 0:00:03]} Qxd4+ {[%emt 0:00:11]} 22. Nxd4 {[%emt 0:00:05]} Nxe2+ {[%emt 0:07:14]} 23. Nxe2 {[%emt 0:00:04]} Rc2 {[%emt 0:00:06]} 24. Nd4 {[%emt 0:06:06]} Rxa2 {[%emt 0:00:47]} 25. Rf2 {[%emt 0:00:12]} Rxf2 {[%emt 0:06:14]} (25... Bxb3 $17 26. Rb1 {[#]} Bc4 $1 {[%mdl 512]}) 26. Kxf2 {[%emt 0:00:16]} Bd7 {[%emt 0:00:12]} 27. Rb1 {[%emt 0:01:31]} e5 {[%emt 0:03:35]} 28. Ne2 {[%emt 0:00:08]} Rb4 {[%emt 0:01:55]} 29. Nc3 {[%emt 0:01:20]} Be6 {[%emt 0:03:54]} 30. Nd5 {[%emt 0:02:30]} Bxd5 $1 {[%emt 0:00:42]} 31. exd5 {[%emt 0:00:01]} Kf8 {[%emt 0:00:13]} 32. Ra1 {[%emt 0:03:36]} Rxb3 {[%emt 0:00:23]} 33. Ra8+ {[%emt 0:00:10]} Ke7 {[%emt 0:00:29]} 34. Ra7+ $1 {[%emt 0:00:04]} Ke8 {[%emt 0:00:23]} 35. Ra8+ $1 {[%emt 0:00:06]} Ke7 {[%emt 0:01:04]} 36. Ra7+ $17 {[%emt 0:00:11]} {Black should play} Kf6 $17 {[%emt 0:04:18]} 37. Ra6 {[%emt 0:00:09]} Rd3 {[%emt 0:01:01]} (37... Rb2+ 38. Kf1 Rd2 39. Rxd6+ Ke7) 38. Rxd6+ {[%emt 0:00:27]} Ke7 {[%emt 0:00:03]} 39. Ra6 {[%emt 0:02:39]} Rxd5 {[%emt 0:00:05]} 40. Ra7+ {[%emt 0:02:14]} Rd7 {[%emt 0:00:41]} 41. Ra5 {[%emt 0:00:06]} Ke6 {[%emt 0:00:22]} 42. Ra6+ {[%emt 0:00:09]} Rd6 {[%emt 0:00:05]} 43. Ra7 {[%emt 0:00:03]} Rd2+ {[%emt 0:02:15]} 44. Kg3 {[%emt 0:00:17]} h6 {[%emt 0:01:17]} 45. h4 {[%emt 0:00:20]} Rd6 {[%emt 0:00:29]} 46. Ra8 h5 {[%emt 0:00:28]} 47. Re8+ {[%emt 0:01:29]} Kf6 {[%emt 0:00:16]} 48. Ra8 {[%emt 0:00:05]} Ke6 {[%emt 0:00:44]} 49. Re8+ {[%emt 0:00:06]} Kf6 {[%emt 0:00:03]} 50. Ra8 {[%emt 0:00:11]} Kf5 {[%emt 0:01:50]} 51. Ra4 {[%emt 0:00:47]} Ke6 {[%emt 0:01:30]} 52. Ra8 {[%emt 0:01:31]} Kf5 {[%emt 0:00:49]} 53. Ra4 {[%emt 0:00:02]} Ke6 {[%emt 0:00:07]} 54. Ra8 {[%emt 0:00:01]} Kf5 {[%emt 0:00:44]} 1/2-1/2

[Event "4th EFE Metz Festival-WIM"]
[Site "Metz"]
[Date "2018.07.24"]
[Round "2"]
[White "Soubirou, Oriane"]
[Black "Zozulia, Anna"]
[Result "0-1"]
[ECO "A00"]
[WhiteElo "2105"]
[BlackElo "2300"]
[Annotator "NA"]
[PlyCount "66"]
[EventDate "2018.07.22"]
[EventType "tourn"]
[EventCountry "FRA"]
[SourceTitle "playchess.com"]
[Source "ChessBase"]
[SourceQuality "1"]
[TimeControl "5400+30"]

1. e3 {[%emt 0:12:13]} Nf6 {[%emt 0:03:22]} 2. b3 {[%emt 0:02:13]} c5 {[%emt 0:05:11]} 3. Bb2 {[%emt 0:00:48]} e6 {[%emt 0:00:15]} 4. f4 {[%emt 0:00:44]} b6 {[%emt 0:03:29]} 5. Nf3 {[%emt 0:02:04]} Bb7 {[%emt 0:00:07]} 6. Bd3 {[%emt 0:03:02]} Nc6 {[%emt 0:01:08]} 7. a3 {[%emt 0:01:06]} d6 {[%emt 0:16:05]} 8. O-O {[%emt 0:07:25]} Be7 {[%emt 0:00:23]} 9. Ng5 {[%emt 0:07:01]} h6 {[%emt 0:13:26]} 10. Bc4 {[%emt 0:39:21]} d5 {[%emt 0:14:19]} 11. Bd3 {[%emt 0:06:08]} hxg5 {[%emt 0:07:24]} 12. fxg5 {[%emt 0:00:06]} Ne4 {[%emt 0:11:55]} 13. Bxg7 {[%emt 0:08:02]} Rh7 {[%emt 0:06:50]} 14. Bf6 {[%emt 0:03:38]} Bxf6 {[%emt 0:01:22]} 15. gxf6 {[%emt 0:01:07]} Qd6 {[%emt 0:00:23]} 16. h3 {[%emt 0:00:37]} O-O-O $19 {[%emt 0:04:33]} 17. Nc3 {[%emt 0:01:27]} Nxc3 {[%emt 0:00:59]} 18. dxc3 {[%emt 0:00:07]} Rxh3 {[%emt 0:00:12]} 19. Qg4 {[%emt 0:00:52]} Rg3 {[%emt 0:02:15]} 20. Qh5 {[%emt 0:00:23]} Rdg8 {[%emt 0:00:13]} 21. Rf2 {[%emt 0:00:29]} Ne5 {[%emt 0:01:33]} 22. Be2 {[%emt 0:00:09]} Rxe3 {[%emt 0:02:48]} 23. a4 {[%emt 0:00:29]} d4 {[%emt 0:00:18]} 24. a5 {[%emt 0:00:44]} Reg3 {[%emt 0:00:54]} 25. axb6 {[%emt 0:00:29]} axb6 {[%emt 0:00:06]} 26. Ba6 {[%emt 0:00:39]} Bxa6 {[%emt 0:01:27]} 27. Rxa6 {[%emt 0:00:19]} Qd5 {[%emt 0:00:30]} 28. Qe2 {[%emt 0:00:59]} d3 {[%emt 0:00:19]} 29. cxd3 {[%emt 0:01:10]} Nxd3 {[%emt 0:01:47]} 30. Qa2 {[%emt 0:00:10]} Nxf2 {[%emt 0:00:55]} 31. Ra8+ {[%emt 0:00:07]} Kc7 {[%emt 0:00:04]} 32. Qa7+ {[%emt 0:00:30]} Kd6 {[%emt 0:00:26]} 33. Qxb6+ {[%emt 0:00:40]} Ke5 {[%emt 0:00:13]} 0-1